[Event "ESCC-50 2022"]
[Site "Lublin"]
[Date "2022.07.07"]
[Round "3.11"]
[White "Baliuniene, Margarita"]
[Black "Babijczuk, Wojciech"]
[Result "1-0"]
[ECO "A43"]
[WhiteElo "1935"]
[BlackElo "1436"]
[Annotator "TA"]
[PlyCount "121"]
[EventDate "2022.07.05"]
[EventType "swiss"]
[EventCountry "POL"]
[SourceTitle "playchess.com"]
[Source "ChessBase"]
[SourceQuality "1"]
[TimeControl "40/5400+30:1800+30"]

{[%evp 9,121,-7,0,3,10,4,6,0,18,19,53,-21,-6,-41,18,17,26,33,47,12,26,24,15,20,11,14,30,26,51,38,86,29,106,27,102,0,108,112,110,100,107,106,102,120,115,111,132,132,132,132,132,132,132,134,127,125,129,120,137,121,116,97,101,43,43,42,150,99,173,171,255,211,311,302,372,372,423,236,749,703,29972,29974,29977,29978,29978,29978,29976,29979,29978,29980,29981,29982,29984,29982,29982,29983,29983,29984,29984,29985,29985,29986,29989,29987,29987,29986,29986,29987,29987,29988,29988,29989,29989,29990]} 1. d4 {[%emt 0:00:02]} c5 {[%emt 0:00:05]} 2. e3 {[%emt 0:00:09]} cxd4 {[%emt 0:00:09]} 3. exd4 {[%emt 0:00:01]} g6 {[%emt 0:00:13]} 4. Nf3 {[%emt 0:00:34]} Bg7 {[%emt 0:00:10]} 5. b3 {[%emt 0:00:49] [#]} a6 $146 {[%emt 0:00:21]} ({Predecessor:} 5... d5 6. Bb2 Nc6 7. Nbd2 Bg4 8. h3 Bxf3 9. Nxf3 Qa5+ 10. c3 Nf6 11. Be2 Ne4 {1-0 (45) Firouzja,A (2759)-Artemiev,V (2709) Chess.com INT 2021}) 6. Bb2 {[%emt 0:00:07] A43: Schmid Benoni.} Nf6 {[%emt 0:00:08]} 7. Bd3 {[%emt 0:00:57]} O-O {[%emt 0:00:18]} 8. O-O {[%emt 0:00:15] The position is equal.} d6 {[%emt 0:00:14]} 9. c4 {[%emt 0:00:57]} Nc6 {[%emt 0:00:40]} 10. a3 {[%emt 0:04:04]} (10. d5 $14 Nb4 11. Be2) 10... Bg4 {[%emt 0:03:50]} 11. Nbd2 {[%emt 0:01:00]} (11. d5 $5 {[%cal Rd5c6]} Bxf3 12. Qxf3 $11) 11... Rc8 {[%emt 0:02:44]} (11... Nh5 $15) 12. h3 $11 {[%emt 0:01:06]} Bxf3 {[%emt 0:02:18]} 13. Nxf3 {[%emt 0:00:10]} ({Of course not} 13. Qxf3 Nd7 $15) 13... Nh5 {[%emt 0:03:44][%cal Bf6h5,Bh5f4,Bf4d3][%mdl 32]} 14. b4 {[%emt 0:11:46]} Nf4 {[%emt 0:03:27]} 15. Re1 {[%emt 0:02:32]} Nxd3 {[%emt 0:00:18]} 16. Qxd3 {[%emt 0:00:15]} Re8 {[%emt 0:05:49]} 17. Rad1 {[%emt 0:02:24]} Qc7 {[%emt 0:00:23]} 18. Qb3 {[%emt 0:10:17]} b6 {[%emt 0:04:52]} 19. Rc1 {[%emt 0:06:05]} Qb8 {[%emt 0:07:46]} (19... e5 $14) 20. Rc2 {[%emt 0:07:28]} (20. d5 $16 {Hoping for Bxg7.} Ne5 21. Nxe5 dxe5 22. Qa4) 20... h6 {[%emt 0:00:32]} (20... e5 $11) 21. Rce2 {[%emt 0:02:00]} ({White should try} 21. d5 $1 $16 {[%cal Rd5c6]} Ne5 22. Nxe5 dxe5 23. Qg3) 21... Qc7 {[%emt 0:03:02]} (21... e5 $11) 22. Rc2 {[%emt 0:04:33]} Qb8 {[%emt 0:00:26] [#]} 23. d5 $1 {[%emt 0:04:27]} Ne5 {[%emt 0:04:16]} 24. Nxe5 {[%emt 0:00:25]} dxe5 {[%emt 0:00:38]} 25. Qg3 {[%emt 0:02:07][%cal Rb2e5]} e6 {[%emt 0:10:09] And now ...exd5 would win.} 26. Bxe5 {[%emt 0:01:15]} Bxe5 {[%emt 0:00:13]} 27. Rxe5 {[%emt 0:00:30]} Kg7 {[%emt 0:10:10]} 28. dxe6 {[%emt 0:00:46] White is much more active.} Rxe6 {[%emt 0:03:17]} 29. Rxe6 {[%emt 0:00:07]} Qxg3 {[%emt 0:00:22]} 30. fxg3 {[%emt 0:00:03]} fxe6 $16 {[%emt 0:00:24][%mdl 4096] Endgame KR-KR} 31. Kf2 {[%emt 0:00:45]} Kf6 {[%emt 0:00:21]} 32. Ke3 {[%emt 0:00:23]} Ke5 {[%emt 0:00:42]} 33. Kd3 {[%emt 0:01:54]} Rd8+ {[%emt 0:02:07]} 34. Kc3 {[%emt 0:00:11]} Rd1 {[%emt 0:00:27]} 35. Re2+ {[%emt 0:02:00]} Kf6 {[%emt 0:03:50]} 36. c5 {[%emt 0:01:44]} (36. Rd2 $16 Rc1+ 37. Rc2) 36... bxc5 $14 {[%emt 0:01:13]} 37. bxc5 {[%emt 0:00:08]} Ke7 {[%emt 0:00:14] White leaves nothing to chance now.} (37... e5 $14) 38. Kb4 {[%emt 0:01:00]} ({White should play} 38. g4) 38... Rd3 {[%emt 0:03:39]} (38... Rb1+ $16 39. Ka5 Rb5+ 40. Kxa6 Rxc5) 39. g4 $18 {[%emt 0:02:19]} g5 {[%emt 0:08:52]} (39... Rd5 {was called for.} 40. Kc4 Rd1) 40. a4 {[%emt 0:00:00] Ka5 is the strong threat.} Rd4+ {[%emt 0:00:00]} (40... Rd5 {was necessary.} 41. Ka5 Rxc5+ 42. Kxa6 Kd6) 41. Ka5 {[%emt 0:03:11]} Rc4 {[%emt 0:02:40]} 42. Kb6 {[%emt 0:02:15] Strongly threatening c6.} Rxa4 {[%emt 0:03:50]} 43. Rd2 {[%emt 0:03:10]} (43. Rb2 $142) 43... Rc4 $2 {[%emt 0:03:51] [#]} (43... Rb4+ 44. Kxa6 Rc4) 44. c6 $1 {[%emt 0:00:39] aiming for c7.} e5 {[%emt 0:09:05]} 45. c7 {[%emt 0:01:06] White mates.} Rc1 {[%emt 0:05:08]} 46. Rd8 {[%emt 0:00:51]} Rb1+ {[%emt 0:00:41]} 47. Ka7 {[%emt 0:00:20]} Rc1 {[%emt 0:01:17]} 48. c8=Q {[%emt 0:00:08]} Rxc8 {[%emt 0:00:15]} 49. Rxc8 {[%emt 0:00:06]} Kd6 {[%emt 0:00:20]} 50. Kxa6 {[%emt 0:00:09] KR-K3P} e4 {[%emt 0:00:05]} 51. Re8 {[%emt 0:00:38]} Kd5 {[%emt 0:00:09]} 52. Kb5 {[%emt 0:00:08]} Kd4 {[%emt 0:00:12]} 53. Re6 {[%emt 0:01:03]} e3 {[%emt 0:00:24]} 54. Rxh6 {[%emt 0:00:11] KR-KPP} Kd5 {[%emt 0:05:31]} 55. Rh8 {[%emt 0:00:28]} Ke4 {[%emt 0:00:19]} 56. Re8+ {[%emt 0:00:08]} Kd3 {[%emt 0:00:02]} 57. g3 {[%emt 0:00:18]} Kd2 {[%emt 0:00:28]} 58. h4 {[%emt 0:00:05][%cal Bh3h4,Bh4g5,Bg5g6][%mdl 32]} e2 {[%emt 0:00:55]} 59. hxg5 {[%emt 0:00:10]} e1=Q {[%emt 0:01:07]} 60. Rxe1 {[%emt 0:00:03]} Kxe1 {[%emt 0:00:09]} 61. g6 {[%emt 0:00:05] Weighted Error Value: White=0.18 (very precise) /Black=0.37} 1-0

[Event "ESCC-50 2022"]
[Site "Lublin"]
[Date "2022.07.08"]
[Round "4.1"]
[White "Klimaszewski, Dariusz"]
[Black "Lasinskas, Povilas"]
[Result "1-0"]
[ECO "C44"]
[WhiteElo "2152"]
[BlackElo "2096"]
[Annotator "RC"]
[PlyCount "91"]
[EventDate "2022.07.05"]
[EventType "swiss"]
[EventCountry "POL"]
[SourceTitle "playchess.com"]
[Source "ChessBase"]
[SourceQuality "1"]
[TimeControl "40/5400+30:1800+30"]

1. e4 {[%emt 0:00:06]} e5 {[%emt 0:00:05]} 2. Nf3 {[%emt 0:00:06]} Nc6 {[%emt 0:00:05]} 3. c3 {[%emt 0:00:06]} d5 {[%emt 0:06:48]} 4. Qa4 {[%emt 0:01:03]} Qd6 {[%emt 0:03:53]} 5. Bb5 {[%emt 0:00:54]} Bd7 {[%emt 0:00:39]} 6. exd5 {[%emt 0:00:31]} Qxd5 {[%emt 0:00:20]} 7. O-O {[%emt 0:00:29]} a6 {[%emt 0:08:52]} 8. Bc4 {[%emt 0:09:32]} Qd6 {[%emt 0:00:37]} 9. b4 {[%emt 0:11:06]} Nd4 {[%emt 0:06:19]} 10. Qd1 {[%emt 0:01:14]} Ne6 {[%emt 0:00:09]} 11. Re1 {[%emt 0:01:25]} e4 {[%emt 0:24:18]} 12. Rxe4 {[%emt 0:03:22]} Nf6 {[%emt 0:00:36]} 13. Re1 {[%emt 0:00:50]} O-O-O {[%emt 0:00:39]} 14. d4 {[%emt 0:01:15]} Nd5 {[%emt 0:03:16]} 15. Ne5 {[%emt 0:01:56]} Be8 {[%emt 0:00:17]} 16. Qb3 {[%emt 0:00:27]} c6 {[%emt 0:01:43]} 17. Nd2 {[%emt 0:00:39]} f6 {[%emt 0:01:34]} 18. Ne4 {[%emt 0:01:31]} Qc7 {[%emt 0:00:25]} 19. Nd3 {[%emt 0:00:22]} Bf7 {[%emt 0:01:50]} 20. a4 {[%emt 0:02:50]} Be7 {[%emt 0:09:07]} 21. b5 {[%emt 0:02:35]} a5 {[%emt 0:00:20]} 22. bxc6 {[%emt 0:02:31]} Qxc6 {[%emt 0:01:10]} 23. Rb1 {[%emt 0:07:37]} Nec7 {[%emt 0:06:23]} 24. Nec5 {[%emt 0:08:29]} Bxc5 {[%emt 0:00:54]} 25. Nxc5 {[%emt 0:00:38]} b6 {[%emt 0:01:07]} 26. Nd3 {[%emt 0:06:52]} g5 {[%emt 0:03:44]} 27. Bd2 {[%emt 0:01:09]} Rhg8 {[%emt 0:02:04]} 28. Bxd5 {[%emt 0:01:36]} Nxd5 {[%emt 0:09:17]} 29. c4 {[%emt 0:00:28]} Nb4 {[%emt 0:06:44]} 30. Nxb4 {[%emt 0:01:15]} axb4 {[%emt 0:00:05]} 31. d5 {[%emt 0:00:10]} Qc5 {[%emt 0:00:35]} 32. Bxb4 {[%emt 0:00:34]} Qd4 {[%emt 0:00:15]} 33. Bc3 {[%emt 0:01:17]} Qc5 {[%emt 0:00:05]} 34. a5 {[%emt 0:02:00]} Bg6 {[%emt 0:00:09]} 35. Bb4 {[%emt 0:01:20]} Qd4 {[%emt 0:00:30]} 36. Rbd1 {[%emt 0:00:16]} Qg4 {[%emt 0:00:31]} 37. Be7 {[%emt 0:01:12]} Rd7 {[%emt 0:00:17]} 38. f3 {[%emt 0:00:39]} Qf4 {[%emt 0:00:18]} 39. Qxb6 {[%emt 0:00:49]} Re8 {[%emt 0:00:37]} 40. d6 {[%emt 0:00:00]} Qxc4 {[%emt 0:00:00]} 41. Rc1 {[%emt 0:00:43]} Bc2 {[%emt 0:00:52]} 42. Qf2 {[%emt 0:00:26]} Qa6 {[%emt 0:00:45]} 43. Rxc2+ {[%emt 0:00:41]} Kb8 {[%emt 0:00:03]} 44. Rb1+ {[%emt 0:00:38]} Ka8 {[%emt 0:00:11]} 45. Qb6 {[%emt 0:00:29]} Qxb6+ {[%emt 0:00:35]} 46. Rxb6 {[%emt 0:00:22]} 1-0

[Event "ESCC-50 2022"]
[Site "Lublin"]
[Date "2022.07.08"]
[Round "4.2"]
[White "Mrva, Martin"]
[Black "Druckenthaner, Andreas"]
[Result "1-0"]
[ECO "C64"]
[WhiteElo "2385"]
[BlackElo "2272"]
[Annotator "RC"]
[PlyCount "93"]
[EventDate "2022.07.05"]
[EventType "swiss"]
[EventCountry "POL"]
[SourceTitle "playchess.com"]
[Source "ChessBase"]
[SourceQuality "1"]
[TimeControl "40/5400+30:1800+30"]

1. e4 {[%emt 0:00:06]} e5 {[%emt 0:00:13]} 2. Nf3 {[%emt 0:00:08]} Nc6 {[%emt 0:00:08]} 3. Bb5 {[%emt 0:00:13]} Bc5 {[%emt 0:00:09]} 4. c3 {[%emt 0:02:48]} f5 {[%emt 0:00:09]} 5. d4 {[%emt 0:03:48]} fxe4 {[%emt 0:00:55]} 6. Nxe5 {[%emt 0:11:45]} Nxe5 {[%emt 0:00:25]} 7. Qh5+ {[%emt 0:01:40]} Ng6 {[%emt 0:01:13]} 8. Qxc5 {[%emt 0:01:04]} c6 {[%emt 0:04:49]} 9. Be2 {[%emt 0:15:19]} d6 {[%emt 0:01:56]} 10. Qg5 {[%emt 0:01:52]} Qxg5 {[%emt 0:02:44]} 11. Bxg5 {[%emt 0:00:07]} Nf6 {[%emt 0:00:33]} 12. c4 {[%emt 0:01:40]} O-O {[%emt 0:09:09]} 13. Nc3 {[%emt 0:00:34]} Bf5 {[%emt 0:00:19]} 14. O-O {[%emt 0:04:17]} Rae8 {[%emt 0:00:40]} 15. h3 {[%emt 0:01:59]} a6 {[%emt 0:09:08]} 16. b4 {[%emt 0:03:31]} h6 {[%emt 0:10:48]} 17. Be3 {[%emt 0:00:30]} Ne7 {[%emt 0:05:57]} 18. a4 {[%emt 0:01:07]} d5 {[%emt 0:02:08]} 19. c5 {[%emt 0:00:41]} g5 {[%emt 0:05:34]} 20. b5 {[%emt 0:01:48]} a5 {[%emt 0:01:27]} 21. Rab1 {[%emt 0:00:33]} Bd7 {[%emt 0:07:25]} 22. bxc6 {[%emt 0:09:00]} bxc6 {[%emt 0:00:09]} 23. Rb7 {[%emt 0:01:01]} Nf5 {[%emt 0:02:27]} 24. Rfb1 {[%emt 0:01:01]} h5 {[%emt 0:12:09]} 25. Bxh5 {[%emt 0:07:35]} Re7 {[%emt 0:05:59]} 26. Be2 {[%emt 0:02:00]} Rg7 {[%emt 0:01:47]} 27. g4 {[%emt 0:02:49]} Nh4 {[%emt 0:03:12]} 28. Kh2 {[%emt 0:06:00]} Nf3+ {[%emt 0:03:41]} 29. Kg3 {[%emt 0:00:14]} Rff7 {[%emt 0:01:26]} 30. Rb8+ {[%emt 0:01:12]} Kh7 {[%emt 0:00:07]} 31. Ra8 {[%emt 0:00:25]} Kg6 {[%emt 0:00:39]} 32. Rh8 {[%emt 0:05:44]} Rh7 {[%emt 0:01:20]} 33. Rxh7 {[%emt 0:00:07]} Nxh7 {[%emt 0:00:32]} 34. Rb6 {[%emt 0:01:33]} Rf6 {[%emt 0:02:52]} 35. Bxf3 {[%emt 0:00:55]} Rxf3+ {[%emt 0:00:13]} 36. Kg2 {[%emt 0:00:06]} Rf6 {[%emt 0:00:39]} 37. Ra6 {[%emt 0:00:12]} Nf8 {[%emt 0:01:14]} 38. Rxa5 {[%emt 0:00:21]} Ne6 {[%emt 0:00:30]} 39. Ra7 {[%emt 0:00:33]} Bc8 {[%emt 0:00:38]} 40. Ne2 {[%emt 0:00:00]} Nf4+ {[%emt 0:00:00]} 41. Bxf4 {[%emt 0:07:17]} gxf4 {[%emt 0:01:14]} 42. f3 {[%emt 0:00:04]} Rf8 {[%emt 0:02:49]} 43. Rc7 {[%emt 0:02:16]} Kg5 {[%emt 0:01:42]} 44. Rxc6 {[%emt 0:01:07]} exf3+ {[%emt 0:01:50]} 45. Kxf3 {[%emt 0:00:25]} Re8 {[%emt 0:00:06]} 46. Nxf4 {[%emt 0:01:17]} Rf8 {[%emt 0:00:06]} 47. Rg6+ {[%emt 0:00:10]} 1-0

[Event "ESCC-50 2022"]
[Site "Lublin"]
[Date "2022.07.08"]
[Round "4.3"]
[White "Tereladze, Sopiko"]
[Black "Padrak, Rafal"]
[Result "1-0"]
[ECO "B13"]
[WhiteElo "2141"]
[BlackElo "2125"]
[Annotator "NA RC"]
[PlyCount "41"]
[EventDate "2022.07.05"]
[EventType "swiss"]
[EventCountry "POL"]
[SourceTitle "playchess.com"]
[Source "ChessBase"]
[SourceQuality "1"]
[TimeControl "40/5400+30:1800+30"]

1. e4 {[%emt 0:00:05]} c6 {[%emt 0:00:09]} 2. d4 {[%emt 0:01:10]} d5 {[%emt 0:00:05]} 3. exd5 {[%emt 0:01:06]} cxd5 {[%emt 0:00:05]} 4. c4 {[%emt 0:00:34]} Nf6 {[%emt 0:00:19]} 5. Nc3 {[%emt 0:00:06]} Nc6 {[%emt 0:00:39]} 6. Nf3 {[%emt 0:00:15]} e6 {[%emt 0:00:28]} 7. Bd3 {[%emt 0:02:09]} dxc4 {[%emt 0:07:05]} 8. Bxc4 {[%emt 0:00:03]} Bb4 {[%emt 0:00:53]} 9. O-O {[%emt 0:00:42]} O-O {[%emt 0:00:14]} 10. a3 {[%emt 0:03:30]} Be7 {[%emt 0:02:11]} 11. Re1 {[%emt 0:06:06]} a6 {[%emt 0:00:27]} 12. Ba2 {[%emt 0:05:58]} Re8 {[%emt 0:10:02]} 13. Bg5 {[%emt 0:04:15]} b5 {[%emt 0:12:38]} 14. d5 {[%emt 0:07:07]} exd5 {[%emt 0:19:23]} 15. Bxf6 {[%emt 0:00:54]} Bxf6 {[%emt 0:00:11]} 16. Qxd5 {[%emt 0:00:42]} Rxe1+ {[%emt 0:08:31]} 17. Rxe1 {[%emt 0:00:10]} Bd7 {[%emt 0:07:27]} 18. Qxf7+ {[%emt 0:00:31]} Kh8 {[%emt 0:00:03]} 19. Ne4 {[%emt 0:01:24]} Bxb2 {[%emt 0:04:04]} 20. Neg5 {[%emt 0:03:19]} Bg4 {[%emt 0:05:56]} 21. Qb3 1-0

[Event "ESCC-50 2022"]
[Site "Lublin"]
[Date "2022.07.08"]
[Round "4.4"]
[White "Garabetyan, Arno"]
[Black "Sielicki, Tomasz"]
[Result "*"]
[ECO "D32"]
[WhiteElo "2056"]
[BlackElo "1967"]
[Annotator "NA RC"]
[PlyCount "87"]
[EventDate "2022.07.05"]
[EventType "swiss"]
[EventCountry "POL"]
[SourceTitle "playchess.com"]
[Source "ChessBase"]
[SourceQuality "1"]
[TimeControl "40/5400+30:1800+30"]

1. d4 {[%emt 0:00:02]} d5 {[%emt 0:01:02]} 2. c4 {[%emt 0:00:10]} e6 {[%emt 0:00:23]} 3. Nc3 {[%emt 0:00:17]} c5 {[%emt 0:00:17]} 4. cxd5 {[%emt 0:00:43]} exd5 {[%emt 0:00:09]} 5. Nf3 {[%emt 0:00:55]} Nc6 {[%emt 0:00:11]} 6. dxc5 {[%emt 0:01:00]} d4 {[%emt 0:00:17]} 7. Na4 {[%emt 0:00:05]} Bxc5 {[%emt 0:00:13]} 8. Nxc5 {[%emt 0:00:05]} Qa5+ {[%emt 0:00:07]} 9. Bd2 {[%emt 0:00:07]} Qxc5 {[%emt 0:00:05]} 10. Rc1 {[%emt 0:05:01]} Qb6 {[%emt 0:00:13]} 11. e3 {[%emt 0:03:12]} Nf6 {[%emt 0:00:39]} 12. Bc4 {[%emt 0:01:03]} dxe3 {[%emt 0:03:17]} 13. Bxe3 {[%emt 0:00:25]} Qb4+ {[%emt 0:00:23]} 14. Qd2 {[%emt 0:00:15]} Qxd2+ {[%emt 0:00:18]} 15. Bxd2 {[%emt 0:00:40]} O-O {[%emt 0:01:15]} 16. O-O {[%emt 0:01:47]} Bg4 {[%emt 0:03:05]} 17. Rfe1 {[%emt 0:13:38]} Rfd8 {[%emt 0:05:36]} 18. Bg5 {[%emt 0:23:10]} h6 {[%emt 0:01:46]} 19. Bxf6 {[%emt 0:01:10]} gxf6 {[%emt 0:00:09]} 20. Nh4 {[%emt 0:00:29]} Ne5 {[%emt 0:04:40]} 21. h3 {[%emt 0:01:10]} Nxc4 {[%emt 0:11:41]} 22. hxg4 {[%emt 0:01:55]} Ne5 {[%emt 0:09:06]} 23. Rc7 {[%emt 0:03:49]} Nxg4 {[%emt 0:07:29]} 24. Rxb7 {[%emt 0:01:40]} Rab8 {[%emt 0:04:35]} 25. Rxb8 {[%emt 0:02:35]} Rxb8 {[%emt 0:00:04]} 26. f3 {[%emt 0:12:24]} Ne5 {[%emt 0:00:47]} 27. b3 {[%emt 0:00:59]} Rd8 {[%emt 0:07:49]} 28. Re4 {[%emt 0:03:29]} Rd5 {[%emt 0:02:46]} 29. Kf1 {[%emt 0:03:28]} Nd3 {[%emt 0:10:40]} 30. Rc4 {[%emt 0:03:43]} Re5 {[%emt 0:03:27]} 31. Kg1 {[%emt 0:00:52]} a5 {[%emt 0:09:33]} 32. Kh2 {[%emt 0:04:42]} Re2 {[%emt 0:03:43]} 33. Ra4 {[%emt 0:00:34]} Re5 {[%emt 0:04:00]} 34. Rd4 {[%emt 0:03:55]} Nb4 {[%emt 0:01:34]} 35. Rd2 {[%emt 0:01:25]} Rc5 {[%emt 0:02:34]} 36. g4 {[%emt 0:01:23]} h5 {[%emt 0:01:23]} 37. Nf5 {[%emt 0:00:45]} hxg4 {[%emt 0:01:10]} 38. fxg4 {[%emt 0:00:01]} Kh7 {[%emt 0:01:00]} 39. Kg3 {[%emt 0:00:49]} Rc3+ {[%emt 0:01:00]} 40. Kf4 {[%emt 0:00:00]} Nd3+ {[%emt 0:00:00]} 41. Ke4 {[%emt 0:04:07]} Ne5 {[%emt 0:01:24]} 42. Rh2+ {[%emt 0:11:40]} Kg6 {[%emt 0:01:51]} 43. Rg2 {[%emt 0:00:54]} Kg5 {[%emt 0:00:36]} 44. Ne3 {[%emt 0:00:29]} *

[Event "ESCC-50 2022"]
[Site "Lublin"]
[Date "2022.07.08"]
[Round "4.5"]
[White "Pietinen, Pekka"]
[Black "Lilja, Richard"]
[Result "0-1"]
[ECO "A10"]
[WhiteElo "1937"]
[BlackElo "2131"]
[Annotator "NA RC"]
[PlyCount "72"]
[EventDate "2022.07.05"]
[EventType "swiss"]
[EventCountry "POL"]
[SourceTitle "playchess.com"]
[Source "ChessBase"]
[SourceQuality "1"]
[TimeControl "40/5400+30:1800+30"]

1. c4 {[%emt 0:00:18]} f5 {[%emt 0:01:00]} 2. Nc3 {[%emt 0:01:37]} Nf6 {[%emt 0:00:09]} 3. d3 {[%emt 0:00:57]} e5 {[%emt 0:02:53]} 4. Nf3 {[%emt 0:02:35]} d6 {[%emt 0:00:27]} 5. Bg5 {[%emt 0:05:13]} Be7 {[%emt 0:00:11]} 6. Bxf6 {[%emt 0:02:09]} Bxf6 {[%emt 0:01:26]} 7. Nd5 {[%emt 0:00:09]} Nd7 {[%emt 0:07:00]} 8. Nxf6+ {[%emt 0:03:06]} Nxf6 {[%emt 0:00:03]} 9. g3 {[%emt 0:00:17]} O-O {[%emt 0:00:13]} 10. Bg2 {[%emt 0:00:19]} Kh8 {[%emt 0:00:39]} 11. Qd2 {[%emt 0:03:28]} Qe8 {[%emt 0:02:43]} 12. e3 {[%emt 0:12:54]} a5 {[%emt 0:13:33]} 13. d4 {[%emt 0:04:09]} f4 {[%emt 0:07:09]} 14. dxe5 {[%emt 0:13:30]} dxe5 {[%emt 0:02:23]} 15. Qc3 {[%emt 0:00:17]} fxe3 {[%emt 0:08:15]} 16. fxe3 {[%emt 0:06:31]} e4 {[%emt 0:05:46]} 17. Nd2 {[%emt 0:04:24]} Qh5 {[%emt 0:00:46]} 18. h3 {[%emt 0:04:03]} Ra6 {[%emt 0:08:37]} 19. O-O {[%emt 0:04:31]} Bxh3 {[%emt 0:02:46]} 20. Nxe4 {[%emt 0:00:23]} Bxg2 {[%emt 0:01:20]} 21. Kxg2 {[%emt 0:00:24]} Qe2+ {[%emt 0:14:39]} 22. Kg1 {[%emt 0:03:20]} Re6 {[%emt 0:01:55]} 23. Rf2 {[%emt 0:04:05]} Qg4 {[%emt 0:00:30]} 24. Nxf6 {[%emt 0:00:35]} Rexf6 {[%emt 0:00:58]} 25. Rg2 {[%emt 0:02:14]} Rf3 {[%emt 0:04:23]} 26. Qe5 {[%emt 0:02:28]} Qxc4 {[%emt 0:01:25]} 27. Rd1 {[%emt 0:01:23]} Rf1+ {[%emt 0:03:05]} 28. Rxf1 {[%emt 0:00:09]} Rxf1+ {[%emt 0:00:05]} 29. Kh2 {[%emt 0:00:04]} Qc6 {[%emt 0:02:25]} 30. Qg5 {[%emt 0:03:35]} Rf6 {[%emt 0:01:32]} 31. g4 {[%emt 0:04:30]} Qd6+ {[%emt 0:01:01]} 32. Kg1 {[%emt 0:00:24]} Qd1+ {[%emt 0:01:35]} 33. Kh2 {[%emt 0:00:08]} Rh6+ {[%emt 0:00:41]} 34. Kg3 {[%emt 0:00:09]} Qe1+ {[%emt 0:00:11]} 35. Kf3 {[%emt 0:00:36]} Rf6+ {[%emt 0:01:05]} 36. Ke4 {[%emt 0:00:13]} Qh1 {[%emt 0:01:11]} 0-1

[Event "ESCC-50 2022"]
[Site "Lublin"]
[Date "2022.07.08"]
[Round "4.6"]
[White "Puroila, Sippo"]
[Black "Kirszenberg, Marc"]
[Result "1/2-1/2"]
[ECO "D02"]
[WhiteElo "1803"]
[BlackElo "2056"]
[Annotator "NA RC"]
[PlyCount "106"]
[EventDate "2022.07.05"]
[EventType "swiss"]
[EventCountry "POL"]
[SourceTitle "playchess.com"]
[Source "ChessBase"]
[SourceQuality "1"]
[TimeControl "40/5400+30:1800+30"]

1. Nf3 {[%emt 0:00:07]} d5 {[%emt 0:00:05]} 2. d4 {[%emt 0:00:14]} Nf6 {[%emt 0:00:04]} 3. g3 {[%emt 0:00:10]} Bf5 {[%emt 0:00:38]} 4. Bg2 {[%emt 0:00:12]} e6 {[%emt 0:00:18]} 5. O-O {[%emt 0:00:46]} Be7 {[%emt 0:01:31]} 6. c4 {[%emt 0:03:04]} c6 {[%emt 0:00:05]} 7. Nc3 {[%emt 0:03:13]} h6 {[%emt 0:00:04]} 8. cxd5 {[%emt 0:04:46]} exd5 {[%emt 0:01:34]} 9. a3 {[%emt 0:07:16]} Nbd7 {[%emt 0:01:42]} 10. b4 {[%emt 0:00:12]} O-O {[%emt 0:03:11]} 11. Bb2 {[%emt 0:04:26]} Ne4 {[%emt 0:07:25]} 12. Nd2 {[%emt 0:02:58]} Ndf6 {[%emt 0:07:32]} 13. f3 {[%emt 0:01:30]} Nxc3 {[%emt 0:00:50]} 14. Bxc3 {[%emt 0:00:03]} Qd7 {[%emt 0:00:36]} 15. e4 {[%emt 0:00:29]} Bh3 {[%emt 0:00:24]} 16. e5 {[%emt 0:00:20]} Ne8 {[%emt 0:04:57]} 17. Qe2 {[%emt 0:02:10]} Nc7 {[%emt 0:01:19]} 18. f4 {[%emt 0:01:14]} Bxg2 {[%emt 0:00:19]} 19. Kxg2 {[%emt 0:00:05]} f5 {[%emt 0:00:18]} 20. h4 {[%emt 0:01:11]} Ne6 {[%emt 0:01:22]} 21. Nf3 {[%emt 0:00:23]} h5 {[%emt 0:05:14]} 22. Qd3 {[%emt 0:01:27]} g6 {[%emt 0:05:23]} 23. Rfc1 {[%emt 0:06:36]} Qd8 {[%emt 0:02:53]} 24. Bd2 {[%emt 0:00:21]} Qb6 {[%emt 0:02:25]} 25. Rab1 {[%emt 0:01:18]} a6 {[%emt 0:00:36]} 26. Kh2 {[%emt 0:02:21]} Qb5 {[%emt 0:01:43]} 27. Qe3 {[%emt 0:01:02]} Qb6 {[%emt 0:13:48]} 28. Qd3 {[%emt 0:00:30]} Qd8 {[%emt 0:00:26]} 29. Kg2 {[%emt 0:00:48]} Qd7 {[%emt 0:01:21]} 30. Rc2 {[%emt 0:06:38]} Rfc8 {[%emt 0:00:50]} 31. Be3 {[%emt 0:01:14]} Rc7 {[%emt 0:07:39]} 32. Rcb2 {[%emt 0:00:55]} Rcc8 {[%emt 0:01:51]} 33. Kh2 {[%emt 0:01:37]} Qd8 {[%emt 0:01:30]} 34. Kg2 {[%emt 0:00:34]} Kg7 {[%emt 0:01:57]} 35. Kh2 {[%emt 0:00:17]} Qd7 {[%emt 0:00:56]} 36. Kg2 {[%emt 0:00:15]} Qd8 {[%emt 0:03:39]} 37. Kh2 {[%emt 0:00:37]} Qb6 {[%emt 0:00:05]} 38. Kg2 {[%emt 0:00:28]} Qb5 {[%emt 0:00:05]} 39. Qd2 {[%emt 0:01:21]} Qb6 {[%emt 0:02:58]} 40. Qd3 {[%emt 0:00:00]} Qd8 {[%emt 0:00:00]} 41. Kh2 {[%emt 0:00:39]} Nf8 {[%emt 0:02:06]} 42. Kh3 {[%emt 0:01:07]} Qd7 {[%emt 0:00:18]} 43. Kh2 {[%emt 0:00:15]} Qe6 {[%emt 0:00:14]} 44. Kg2 {[%emt 0:00:24]} Nd7 {[%emt 0:00:13]} 45. Rc2 {[%emt 0:00:48]} Nb6 {[%emt 0:01:10]} 46. Nd2 {[%emt 0:00:10]} Qd7 {[%emt 0:00:39]} 47. Rbc1 {[%emt 0:00:24]} Qd8 {[%emt 0:00:45]} 48. Bf2 {[%emt 0:00:22]} Qd7 {[%emt 0:01:55]} 49. Be3 {[%emt 0:00:17]} Qe6 {[%emt 0:00:17]} 50. Kh2 {[%emt 0:00:16]} Qf7 {[%emt 0:10:05]} 51. Kg2 {[%emt 0:00:53]} Qf8 {[%emt 0:00:11]} 52. Qb3 {[%emt 0:02:30]} Qd8 {[%emt 0:02:43]} 53. Bf2 {[%emt 0:00:12]} Qd7 1/2-1/2